fUSD/lending_fUSD_20241202
["ID","MTS","AMOUNT","RATE_DAILY","PERIOD"]
[343947824,1733123432623,-150.0,7.998e-05,2]
[343947826,1733123432633,-438.616,7.999e-05,2]
[343947827,1733123432644,-479.8102,7.999e-05,2]
[343947828,1733123432655,-1302.09831988,7.999e-05,2]
[343947829,1733123432665,-44479.46959867,7.999e-05,2]
[343947830,1733123432676,-201.22755302,7.999e-05,2]
[343947831,1733123432687,-1904.73941394,7.999e-05,2]
[343947832,1733123432697,-2952.04,7.999e-05,2]
[343947833,1733123432710,-314.94531427,7.999e-05,2]
[343947834,1733123432720,-705.94,7.999e-05,2]
[343947835,1733123432730,-3028.00090129,7.999e-05,2]
[343947836,1733123432740,-2026.96314325,8e-05,2]
[343947837,1733123432770,-3882.29293266,8e-05,2]
[343947838,1733123432790,-1842.15,8e-05,2]
[343947839,1733123432847,-295.56834924,8e-05,2]
[343947875,1733123438598,-500.0,7.973e-05,2]
[343947876,1733123438609,-1146.29695964,8e-05,2]
[343947877,1733123438622,-9921.53473584,8e-05,2]
[343947878,1733123438654,-14259.44576947,8e-05,2]
[343947879,1733123439230,-1248.7248569,8e-05,2]
[343947880,1733123439242,-471.843108,8e-05,2]
[343947881,1733123439304,-1157.3,8e-05,2]
[343947882,1733123439803,-2909.10618,8e-05,2]
[343947883,1733123439996,-10312.32268471,8e-05,2]
[343947884,1733123440008,-575.999995,8e-05,2]
[343947892,1733123442776,-48953.52754939,8e-05,2]
[343947893,1733123442785,-1366.89759932,8e-05,2]
[343947894,1733123442797,-2130.10240068,8e-05,2]
[343947895,1733123442806,-12043.81719585,8e-05,2]
[343947896,1733123442925,-8768.88988949,8e-05,2]
[343947897,1733123442978,-8512.66162947,8e-05,2]
[343947898,1733123442989,-5991.83942691,8e-05,2]
[343947899,1733123443001,-125501.51598946,8e-05,2]
[343947912,1733123445780,-2500.0,7.9e-05,2]
[343947913,1733123445790,-1773.77632042,8e-05,2]
[343947918,1733123518622,10259.33,7.022e-05,2]
[343947919,1733123634836,10000.0,0.00025,120]
[343947920,1733123644582,10000.0,0.00025,120]
[343947925,1733123781668,346.24,6.906e-05,2]
[343947926,1733123805753,480.12,6.904e-05,2]
[343947931,1733124224370,150.0,6.887e-05,2]
[343947932,1733124224391,150.0,6.887e-05,2]
[343947933,1733124224413,88.79,6.887e-05,2]
[343947936,1733124351116,154.24,5.513e-05,2]
[343947937,1733124369645,532.59,6.891e-05,2]
[343947978,1733124631911,-4362.06494,7.5e-05,2]
[343947980,1733124631921,-500.0,7.673e-05,2]
[343947982,1733124631930,-555.6909775,7.673e-05,2]
[343947984,1733124631941,-251.95393259,7.673e-05,2]
[343947987,1733124631950,-184.00054064,7.699e-05,2]
[343947988,1733124631959,-150.0,7.699e-05,2]
[343947990,1733124631968,-3597.28960927,7.7e-05,2]
[343947993,1733124631985,-961.0,7.7e-05,2]
[343947998,1733124632017,-1093839.77647939,7.7e-05,2]
[343948000,1733124632026,-440.0337,7.72e-05,2]
[343948002,1733124632035,-150.0,7.727e-05,2]
[343948004,1733124632045,-150.0,7.727e-05,2]
[343948006,1733124632054,-3299.0,7.727e-05,2]
[343948008,1733124632064,-150.0,7.729e-05,2]
[343948009,1733124632073,-150.0,7.732e-05,2]
[343948011,1733124632083,-150.0,7.733e-05,2]
[343948013,1733124632092,-150.0,7.733e-05,2]
[343948015,1733124632101,-150.0,7.735e-05,2]
[343948017,1733124632111,-266.48879639,7.737e-05,2]
[343948019,1733124632122,-150.0,7.74e-05,2]
[343948021,1733124632131,-150.0,7.752e-05,2]
[343948023,1733124632141,-532.59,7.753e-05,2]
[343948024,1733124632151,-150.0,7.756e-05,2]
[343948026,1733124632161,-150.0,7.759e-05,2]
[343948028,1733124632170,-150.0,7.76e-05,2]
[343948029,1733124632180,-346.24,7.769e-05,2]
[343948031,1733124632189,-150.0,7.772e-05,2]
[343948033,1733124632199,-150.0,7.773e-05,2]
[343948035,1733124632208,-150.0,7.777e-05,2]
[343948036,1733124632218,-150.0,7.777e-05,2]
[343948038,1733124632228,-150.0,7.78e-05,2]
[343948040,1733124632240,-150.0,7.785e-05,2]
[343948041,1733124632252,-150.0,7.788e-05,2]
[343948043,1733124632262,-150.0,7.799e-05,2]
[343948045,1733124632272,-150.0,7.8e-05,2]
[343948047,1733124632283,-150.0,7.806e-05,2]
[343948049,1733124632293,-150.0,7.812e-05,2]
[343948050,1733124632303,-150.0,7.816e-05,2]
[343948052,1733124632314,-150.0,7.82e-05,2]
[343948053,1733124632325,-150.0,7.823e-05,2]
[343948054,1733124632335,-150.0,7.827e-05,2]
[343948055,1733124632345,-150.0,7.827e-05,2]
[343948056,1733124632355,-150.0,7.832e-05,2]
[343948057,1733124632367,-150.0,7.84e-05,2]
[343948058,1733124632387,-150.0,7.842e-05,2]
[343948059,1733124632406,-150.0,7.845e-05,2]
[343948060,1733124632423,-150.0,7.861e-05,2]
[343948061,1733124632435,-150.0,7.864e-05,2]
[343948062,1733124632445,-150.0,7.865e-05,2]
[343948064,1733124632455,-150.0,7.866e-05,2]
[343948067,1733124632473,-150.0,7.869e-05,2]
[343948070,1733124632493,-150.0,7.88e-05,2]
[343948073,1733124632503,-150.0,7.883e-05,2]
[343948076,1733124632513,-150.0,7.883e-05,2]
[343948079,1733124632523,-150.0,7.884e-05,2]
[343948083,1733124632533,-150.0,7.888e-05,2]
[343948086,1733124632542,-306.38,7.89e-05,2]
[343948088,1733124632551,-150.0,7.89e-05,2]
[343948091,1733124632568,-348.3,7.894e-05,2]
[343948094,1733124632578,-150.0,7.897e-05,2]
[343948096,1733124632588,-150.0,7.897e-05,2]
[343948098,1733124632597,-150.0,7.899e-05,2]
[343948100,1733124632607,-150.0,7.899e-05,2]
[343948102,1733124632617,-2500.0,7.9e-05,2]
[343948104,1733124632626,-150.0,7.903e-05,2]
[343948106,1733124632637,-1500.0,7.904e-05,2]
[343948108,1733124632647,-150.0,7.907e-05,2]
[343948110,1733124632657,-150.0,7.912e-05,2]
[343948112,1733124632666,-150.0,7.915e-05,2]
[343948114,1733124632676,-150.0,7.916e-05,2]
[343948116,1733124632685,-150.0,7.92e-05,2]
[343948118,1733124632694,-150.0,7.921e-05,2]
[343948120,1733124632704,-150.0,7.921e-05,2]
[343948122,1733124632713,-150.0,7.926e-05,2]
[343948124,1733124632724,-150.0,7.928e-05,2]
[343948126,1733124632738,-150.0,7.928e-05,2]
[343948128,1733124632752,-150.0,7.929e-05,2]
[343948130,1733124632761,-150.0,7.936e-05,2]
[343948132,1733124632771,-150.0,7.941e-05,2]
[343948134,1733124632781,-150.0,7.942e-05,2]
[343948136,1733124632791,-150.0,7.945e-05,2]
[343948138,1733124632800,-150.0,7.948e-05,2]
[343948140,1733124632810,-150.0,7.949e-05,2]
[343948142,1733124632819,-150.0,7.952e-05,2]
[343948145,1733124632829,-150.0,7.964e-05,2]
[343948147,1733124632839,-150.0,7.964e-05,2]
[343948149,1733124632848,-150.0,7.965e-05,2]
[343948151,1733124632858,-150.0,7.968e-05,2]
[343948153,1733124632867,-150.0,7.976e-05,2]
[343948154,1733124632877,-7400.45928722,7.98e-05,2]
[343948157,1733124632920,-480.0,7.98e-05,2]
[343948159,1733124632931,-1912.99836,7.98e-05,2]
[343948163,1733124632954,-581.80504394,7.98e-05,2]
[343948165,1733124632967,-820.11471375,7.98e-05,2]
[343948172,1733124637904,-348.4432267,7.956e-05,2]
[343948174,1733124637964,-120.09984723,7.956e-05,2]
[343948175,1733124637972,-468.54307393,7.957e-05,2]
[343948176,1733124637982,-468.54307393,7.958e-05,2]
[343948177,1733124637993,-468.54307393,7.967e-05,2]
[343948178,1733124638006,-468.54307393,7.975e-05,2]
[343948179,1733124638016,-468.54307393,7.976e-05,2]
[343948180,1733124638025,-6422.31092672,7.98e-05,2]
[343948181,1733124638035,-150.0,7.981e-05,2]
[343948182,1733124638045,-150.0,7.984e-05,2]
[343948183,1733124638055,-150.0,7.987e-05,2]
[343948184,1733124638064,-45786.8738567,7.988e-05,2]
[343948185,1733124638090,-10201.74246676,7.988e-05,2]
[343948186,1733124638269,-1684.6302295,7.988e-05,2]
[343948189,1733124638280,-1240.7097533,7.988e-05,2]
[343948191,1733124638291,-1129.08,7.988e-05,2]
[343948280,1733124639875,-480.01,7.988e-05,2]
[343948281,1733124639960,-406.24944498,7.988e-05,2]
[343948282,1733124639972,-1054.26911475,7.988e-05,2]
[343948283,1733124639983,-2047.85933865,7.988e-05,2]
[343948284,1733124640151,-2043.6,7.988e-05,2]
[343948285,1733124640163,-555.107,7.988e-05,2]
[343948289,1733124643010,-5748.60747112,7.988e-05,2]
[343948290,1733124643020,-237.1460815,7.989e-05,2]
[343948291,1733124643031,-210.5344218,7.99e-05,2]
[343948292,1733124643041,-168.8293776,7.993e-05,2]
[343948293,1733124643053,-168.8293776,7.995e-05,2]
[343948294,1733124643065,-168.8293776,7.995e-05,2]
[343948295,1733124643077,-210.5344218,7.995e-05,2]
[343948296,1733124643087,-210.5344218,7.995e-05,2]
[343948297,1733124643097,-237.1460815,7.995e-05,2]
[343948298,1733124643107,-237.1460815,7.995e-05,2]
[343948299,1733124643117,-562.0,7.998e-05,2]
[343948300,1733124643126,-3760.0,7.998e-05,2]
[343948301,1733124643135,-1252.0,7.998e-05,2]
[343948302,1733124643144,-816.0,7.998e-05,2]
[343948303,1733124643154,-407.714,7.998e-05,2]
[343948304,1733124643163,-715.378,7.998e-05,2]
[343948305,1733124643172,-150.0,7.998e-05,2]
[343948306,1733124643182,-146362.86486384,7.998e-05,2]
[343948307,1733124643191,-150.0,7.998e-05,2]
[343948308,1733124643201,-150.0,7.998e-05,2]
[343948309,1733124643211,-150.0,7.998e-05,2]
[343948310,1733124643221,-150.0,7.998e-05,2]
[343948311,1733124643231,-150.0,7.998e-05,2]
[343948312,1733124643246,-150.0,7.998e-05,2]
[343948313,1733124643256,-150.0,7.998e-05,2]
[343948314,1733124643266,-150.0,7.998e-05,2]
[343948315,1733124643275,-150.0,7.998e-05,2]
[343948316,1733124643286,-150.0,7.998e-05,2]
[343948317,1733124643296,-150.0,7.998e-05,2]
[343948318,1733124643306,-150.0,7.998e-05,2]
[343948319,1733124643316,-150.0,7.998e-05,2]
[343948320,1733124643327,-150.0,7.998e-05,2]
[343948321,1733124643337,-150.0,7.998e-05,2]
[343948322,1733124643348,-1904.73941393,7.999e-05,2]
[343948323,1733124643357,-1824.50607392,7.999e-05,2]
[343948324,1733124643367,-2829.04,7.999e-05,2]
[343948325,1733124643377,-3021.0,8e-05,2]
[343948326,1733124643386,-68637.32721423,8e-05,2]
[343948327,1733124643426,-1289.23672453,8e-05,2]
[343948329,1733124643438,-9601.0,8e-05,2]
[343948331,1733124643450,-17442.04818974,8e-05,2]
[343948333,1733124643461,-5970.38289961,8e-05,2]
[343948337,1733124643498,-4068.11687,8e-05,2]
[343948369,1733124646998,-19256.8368,8e-05,2]
[343948370,1733124647010,-1848.3,8e-05,2]
[343948371,1733124647034,-3364.268,8e-05,2]
[343948372,1733124647046,-2227.99999,8e-05,2]
[343948373,1733124647057,-682.0,8e-05,2]
[343948374,1733124647094,-4810.3055,8e-05,2]
[343948375,1733124674514,150.0,7e-05,2]
[343948376,1733124674549,150.0,7e-05,2]
[343948377,1733124674581,150.0,7e-05,2]
[343948378,1733124674614,150.0,7e-05,2]
[343948379,1733124676625,150.0,7.1e-05,2]
[343948380,1733124676654,150.0,7.1e-05,2]
[343948381,1733124676683,150.0,7.1e-05,2]
[343948382,1733124676712,150.0,7.1e-05,2]
[343948383,1733124676742,150.0,7.1e-05,2]
[343948384,1733124676776,150.0,7.1e-05,2]
[343948385,1733124676814,276.18,7.1e-05,2]
[343948386,1733124676846,23.82,7.1e-05,2]
[343948388,1733124689674,150.0,7.163e-05,2]
[343948389,1733124689708,-150.0,7.163e-05,2]
[343948390,1733124689852,-150.0,7.163e-05,2]
[343948391,1733124689906,-150.0,7.163e-05,2]
[343948392,1733124692584,-600.0,7.163e-05,2]
[343948393,1733124701671,31074.80493093,7.162e-05,2]
[343948394,1733124728374,1135.49566033,0.00025,120]
[343948395,1733124764344,-150.0,7.163e-05,2]
[343948396,1733124766735,-150.0,7.163e-05,2]
[343948397,1733124767351,-150.0,7.163e-05,2]
[343948398,1733124768125,-150.0,7.163e-05,2]
[343948399,1733124768724,-150.0,7.163e-05,2]
[343948400,1733124771000,-150.0,7.163e-05,2]
[343948401,1733124771623,-150.0,7.163e-05,2]
[343948402,1733124868690,13735.29,7.07e-05,2]
[343948403,1733125038530,388.13,6.95e-05,2]
[343948404,1733125044681,167.04,5.547e-05,2]
[343948405,1733125059611,250.0,6.934e-05,2]
[343948406,1733125192041,1500.0,6.919e-05,2]
[343948407,1733125236940,150.0,6.919e-05,2]
[343948408,1733125236968,150.0,6.919e-05,2]
[343948409,1733125236997,341.59,6.919e-05,2]
[343948415,1733125625387,500.0,7e-05,2]
[343948416,1733125627502,150.0,7.1e-05,2]
[343948417,1733125627525,150.0,7.1e-05,2]
[343948418,1733125627547,150.0,7.1e-05,2]
[343948419,1733125627576,150.0,7.1e-05,2]
[343948420,1733125627597,249.84960701,7.1e-05,2]
[343948421,1733125627621,250.15039299,7.1e-05,2]
[343948422,1733125664145,267.75,6.909e-05,2]
[343948423,1733125718210,572.09,7e-05,2]
[343948424,1733125783319,500.0,7e-05,2]
[343948438,1733125832266,-510.78610138,7.2e-05,2]
[343948439,1733125832279,-1189.21389862,7.2e-05,2]
[343948440,1733125832289,-2200.0,7.3e-05,2]
[343948441,1733125832299,-2800.0,7.4e-05,2]
[343948442,1733125832309,-500.0,7.5e-05,2]
[343948443,1733125832319,-500.0,7.6e-05,2]
[343948444,1733125832329,-150.0,7.699e-05,2]
[343948445,1733125832339,-160.78610138,7.7e-05,2]
[343948446,1733125832377,-339.21389862,7.7e-05,2]
[343948447,1733125832387,-150.0,7.734e-05,2]
[343948448,1733125832396,-150.0,7.738e-05,2]
[343948449,1733125832406,-150.0,7.745e-05,2]
[343948450,1733125832416,-267.75,7.773e-05,2]
[343948451,1733125832425,-150.0,7.779e-05,2]
[343948452,1733125832435,-150.0,7.779e-05,2]
[343948453,1733125832446,-500.0,7.8e-05,2]
[343948454,1733125832455,-388.13,7.819e-05,2]
[343948456,1733125832465,-150.0,7.819e-05,2]
[343948458,1733125832475,-150.0,7.834e-05,2]
[343948460,1733125832486,-150.0,7.837e-05,2]
[343948462,1733125832495,-150.0,7.847e-05,2]
[343948464,1733125832505,-150.0,7.858e-05,2]
[343948466,1733125832515,-150.0,7.862e-05,2]
[343948468,1733125832527,-150.0,7.866e-05,2]
[343948469,1733125832546,-150.0,7.885e-05,2]
[343948471,1733125832558,-219.50610144,7.9e-05,2]
[343948473,1733125832571,-1444.36988293,7.9e-05,2]
[343948474,1733125832584,-836.12401563,7.9e-05,2]
[343948476,1733125832595,-295.9393,7.9e-05,2]
[343948478,1733125832605,-1131.0,7.9e-05,2]
[343948480,1733125832615,-150.0,7.92e-05,2]
[343948482,1733125832626,-150.0,7.924e-05,2]
[343948484,1733125832636,-150.0,7.94e-05,2]
[343948486,1733125832646,-150.0,7.949e-05,2]
[343948488,1733125832656,-150.0,7.949e-05,2]
[343948490,1733125832666,-150.0,7.953e-05,2]
[343948492,1733125832677,-580.98841891,7.958e-05,2]
[343948494,1733125832687,-580.98841891,7.96e-05,2]
[343948495,1733125832698,-580.98841891,7.961e-05,2]
[343948496,1733125832708,-150.0,7.961e-05,2]
[343948497,1733125832718,-200.0,7.962e-05,2]
[343948498,1733125832728,-629.62601107,7.962e-05,2]
[343948499,1733125832741,-120.23798628,7.962e-05,2]
[343948500,1733125832751,-580.98841891,7.963e-05,2]
[343948501,1733125832761,-580.98841891,7.964e-05,2]
[343948502,1733125832771,-67.98947545,7.967e-05,2]
[343948507,1733125838193,-512.99894346,7.967e-05,2]
[343948508,1733125838203,-749.86399735,7.967e-05,2]
[343948509,1733125838212,-749.86399735,7.971e-05,2]
[343948510,1733125838222,-749.86399735,7.972e-05,2]
[343948511,1733125838231,-500.0,7.973e-05,2]
[343948512,1733125838241,-200.0,7.974e-05,2]
[343948513,1733125838251,-749.86399735,7.974e-05,2]
[343948514,1733125838260,-150.0,7.975e-05,2]
[343948515,1733125838270,-749.86399735,7.98e-05,2]
[343948516,1733125838279,-150.0,7.98e-05,2]
[343948517,1733125838290,-1082.953,7.99e-05,2]
[343948518,1733125838299,-223.8402517,7.99e-05,2]
[343948519,1733125838309,-506.48813284,7.99e-05,2]
[343948520,1733125838318,-223.8402517,7.995e-05,2]
[343948521,1733125838327,-223.8402517,7.995e-05,2]
[343948522,1733125838338,-703.977,7.998e-05,2]
[343948523,1733125838347,-150.0,7.998e-05,2]
[343948524,1733125838356,-150.0,7.998e-05,2]
[343948525,1733125838366,-150.0,7.998e-05,2]
[343948526,1733125838375,-74.03571938,7.998e-05,2]
[343948527,1733125838387,-75.96428062,7.998e-05,2]
[343948528,1733125838396,-1304.34479701,7.998e-05,2]
[343948529,1733125838720,-7186.86339612,7.998e-05,2]
[343948530,1733125838732,-9144.46362268,7.998e-05,2]
[343948531,1733125838741,-676.53,7.999e-05,2]
[343948532,1733125838751,-152.49417232,7.999e-05,2]
[343948533,1733125838762,-2558.66582768,7.999e-05,2]
[343948534,1733125838771,-3051.0,8e-05,2]
[343948535,1733125838781,-186550.3341723,8e-05,2]
[343948537,1733125840111,-36742.48489549,8e-05,2]
[343948538,1733125840261,-1814.3912775,8e-05,2]
[343948539,1733125840424,-26222.54924352,8e-05,2]
[343948540,1733125840435,-23461.77591802,8e-05,2]
[343948541,1733125840447,-457.26785862,8e-05,2]
[343948547,1733125843136,-7452.23088657,8e-05,2]
[343948549,1733125843148,-2238.43994744,8e-05,2]
[343948550,1733125843160,-14469.19999976,8e-05,2]
[343948551,1733125843255,-483.52,8e-05,2]
[343948552,1733125843268,-9598.5,8e-05,2]
[343948553,1733125843279,-788.01402164,8e-05,2]
[343948554,1733125843363,-3080.54441272,8e-05,2]
[343948555,1733125843375,-5952.6718818,8e-05,2]
[343948556,1733125843387,-5512.4402,8e-05,2]
[343948557,1733125843467,-2647.0,8e-05,2]
[343948558,1733125843476,-8769.74051975,8e-05,2]
[343948559,1733125843487,-7831.37493234,8e-05,2]
[343948560,1733125843499,-5722.00000018,8e-05,2]
[343948572,1733125846026,-3430.03517568,8e-05,2]
[343948573,1733125846314,-79730.14934835,8e-05,2]
[343948574,1733125846326,-55647.56087803,8e-05,2]
[343948575,1733125846431,-3267.34135069,8e-05,2]
[343948577,1733125846494,500.0,7e-05,2]
[343948580,1733125848729,500.0,7e-05,2]
[343948581,1733125849391,500.0,7e-05,2]
[343948582,1733125911732,500.0,7e-05,2]
[343948583,1733125912479,500.0,7e-05,2]
[343948584,1733125913640,500.0,7e-05,2]
[343948585,1733125914402,500.0,7e-05,2]
[343948586,1733125914477,500.0,7e-05,2]
[343948587,1733125915148,500.0,7e-05,2]
[343948588,1733125915249,500.0,7e-05,2]
[343948589,1733125916045,500.0,7e-05,2]
[343948590,1733125916996,500.0,7e-05,2]
[343948591,1733125919582,500.0,7e-05,2]
[343948592,1733125919700,500.0,7e-05,2]
[343948593,1733125919782,500.0,7e-05,2]
[343948594,1733125920110,500.0,7e-05,2]
[343948595,1733125920880,500.0,7e-05,2]
[343948596,1733125980344,500.0,7e-05,2]
[343948597,1733125981438,500.0,7e-05,2]
[343948598,1733125982643,500.0,7e-05,2]
[343948599,1733125983410,500.0,7e-05,2]
[343948600,1733125984245,509.66,7e-05,2]
[343948601,1733125986215,500.0,7e-05,2]
[343948602,1733125986999,500.0,7e-05,2]
[343948603,1733125987766,500.0,7e-05,2]
[343948604,1733125988545,500.0,7e-05,2]
[343948605,1733126049368,500.0,7e-05,2]
[343948606,1733126051860,500.0,7e-05,2]
[343948607,1733126051948,500.0,7e-05,2]
[343948608,1733126052046,500.0,7e-05,2]
[343948609,1733126052795,500.0,7e-05,2]
[343948610,1733126053556,500.0,7e-05,2]
[343948611,1733126053639,500.0,7e-05,2]
[343948612,1733126054310,500.0,7e-05,2]
[343948613,1733126054413,500.0,7e-05,2]
[343948614,1733126055072,500.0,7e-05,2]
[343948615,1733126055204,500.0,7e-05,2]
[343948616,1733126055825,500.0,7e-05,2]
[343948617,1733126056001,500.0,7e-05,2]
[343948618,1733126056648,500.0,7e-05,2]
[343948619,1733126056794,500.0,7e-05,2]
[343948620,1733126057470,500.0,7e-05,2]
[343948621,1733126057956,500.0,7e-05,2]
[343948622,1733126058148,500.0,7e-05,2]
[343948623,1733126058729,500.0,7e-05,2]
[343948624,1733126058926,500.0,7e-05,2]
[343948625,1733126059511,500.0,7e-05,2]
[343948626,1733126059685,500.0,7e-05,2]
[343948627,1733126060267,500.0,7e-05,2]
[343948628,1733126060447,500.0,7e-05,2]
[343948629,1733126061023,500.0,7e-05,2]
[343948630,1733126061216,500.0,7e-05,2]
[343948631,1733126063811,500.0,7e-05,2]
[343948632,1733126063844,500.0,7e-05,2]
[343948633,1733126063908,500.0,7e-05,2]
[343948634,1733126063965,500.0,7e-05,2]
[343948635,1733126064061,500.0,7e-05,2]
[343948636,1733126064096,500.0,7e-05,2]
[343948637,1733126064345,500.0,7e-05,2]
[343948638,1733126064377,500.0,7e-05,2]
[343948639,1733126065138,500.0,7e-05,2]
[343948640,1733126078913,849.85,7.094e-05,2]
[343948641,1733126130382,500.0,7e-05,2]
[343948642,1733126130414,500.0,7e-05,2]
[343948643,1733126131145,500.0,7e-05,2]
[343948644,1733126131179,500.0,7e-05,2]
[343948645,1733126131901,500.0,7e-05,2]
[343948646,1733126131958,500.0,7e-05,2]
[343948647,1733126132690,500.0,7e-05,2]
[343948648,1733126135242,500.0,7e-05,2]
[343948649,1733126135394,500.0,7e-05,2]
[343948650,1733126135471,500.0,7e-05,2]
[343948651,1733126136369,500.0,7e-05,2]
[343948652,1733126137134,500.0,7e-05,2]
[343948653,1733126137938,500.0,7e-05,2]
[343948654,1733126138719,500.0,7e-05,2]
[343948655,1733126140029,500.0,7e-05,2]
[343948656,1733126140548,500.0,7e-05,2]
[343948657,1733126141314,360.45,7e-05,2]
[343948658,1733126147413,500.0,7e-05,2]
[343948659,1733126147693,500.0,7e-05,2]
[343948660,1733126148243,500.0,7e-05,2]
[343948661,1733126149023,500.0,7e-05,2]
[343948662,1733126149831,500.0,7e-05,2]
[343948663,1733126150541,500.0,7e-05,2]
[343948664,1733126151298,500.0,7e-05,2]
[343948665,1733126152063,500.0,7e-05,2]
[343948666,1733126152822,500.0,7e-05,2]
[343948667,1733126153606,500.0,7e-05,2]
[343948668,1733126154394,500.0,7e-05,2]
[343948669,1733126155186,500.0,7e-05,2]
[343948670,1733126155951,432.55,7e-05,2]
[343948671,1733126208619,500.0,7e-05,2]
[343948672,1733126208696,500.0,7e-05,2]
[343948673,1733126208892,500.0,7e-05,2]
[343948674,1733126210179,500.0,7e-05,2]
[343948675,1733126221735,500.0,7e-05,2]
[343948676,1733126227399,500.0,7e-05,2]
[343948677,1733126228192,500.0,7e-05,2]
[343948678,1733126304941,319.55,7.061e-05,2]
[343948679,1733126474678,882.07,6.984e-05,2]
[343948905,1733126675999,300.0,0.00025,120]
[343948911,1733126909969,52882.12664487,7e-05,2]
[343948912,1733126924089,232.87,6.941e-05,2]
[343948915,1733127032344,-283.2,7.35e-05,2]
[343948916,1733127032396,-583.162,7.35e-05,2]
[343948917,1733127032407,-100.37692668,7.351e-05,2]
[343948918,1733127032452,-977.62307332,7.351e-05,2]
[343948919,1733127032465,-2500.0,7.4e-05,2]
[343948920,1733127032475,-500.0,7.473e-05,2]
[343948921,1733127032484,-300.0,7.498e-05,2]
[343948922,1733127032494,-2598.2,7.499e-05,2]
[343948923,1733127032504,-150.0,7.499e-05,2]
[343948924,1733127032514,-3895.16905992,7.499e-05,2]
[343948939,1733127038280,-21342.63147772,7.499e-05,2]
[343948940,1733127038490,-523.43580664,7.499e-05,2]
[343948941,1733127038545,-7978.473835,7.499e-05,2]
[343948942,1733127038598,-3837.69459382,7.499e-05,2]
[343948943,1733127038610,-12894.3007,7.499e-05,2]
[343948953,1733127040228,-814.2,7.499e-05,2]
[343948954,1733127040240,-2289.75960646,7.499e-05,2]
[343948955,1733127040386,-4798.15,7.499e-05,2]
[343948965,1733127043227,-941.93952596,7.499e-05,2]
[343948966,1733127043336,-4996.70720036,7.499e-05,2]
[343948967,1733127043348,-5617.21838723,7.499e-05,2]
[343948968,1733127043360,-1814.16328189,7.499e-05,2]
[343948969,1733127043391,-733.65,7.499e-05,2]
[343948970,1733127043502,-3330.82211843,7.499e-05,2]
[343948971,1733127043514,-1174.7096912,7.499e-05,2]
[343948972,1733127043605,-1313.02179487,7.499e-05,2]
[343948973,1733127043617,-4497.71680684,7.499e-05,2]
[343948989,1733127047158,-2542.15631,7.499e-05,2]
[343948990,1733127047184,-7329.86379,7.499e-05,2]
[343948991,1733127047199,-259.41014085,7.499e-05,2]
[343948992,1733127048393,-3873.8,7.499e-05,2]
[343948993,1733127048429,-1869.07934048,7.499e-05,2]
[343948996,1733127068497,250.0,6.963e-05,2]
[343948997,1733127138276,4707.74,6.911e-05,2]
[343948998,1733127218117,1661.16,0.00025,120]
[343948999,1733127218363,1661.16,0.00025,120]
[343949000,1733127218969,1661.16,0.00025,120]
[343949001,1733127219023,848.25,0.00025,120]
[343949002,1733127219140,500.0,0.00025,120]
[343949003,1733127219430,1661.16,0.00025,120]
[343949004,1733127219462,848.25,0.00025,120]
[343949005,1733127219501,500.0,0.00025,120]
[343949006,1733127219554,848.25,0.00025,120]
[343949007,1733127219671,1661.16,0.00025,120]
[343949008,1733127219793,1173.29,0.00025,120]